[Event "GER-ch Youth U10 2020"]
[Site "Willingen"]
[Date "2020.10.29"]
[Round "4.21"]
[White "Blumenthal Tuset, Sebastian"]
[Black "Ahlers, Quentin"]
[Result "0-1"]
[ECO "C65"]
[WhiteElo "1453"]
[BlackElo "1425"]
[Annotator "NA RC"]
[PlyCount "154"]
[EventDate "2020.10.27"]
[EventType "swiss"]
[EventRounds "7"]
[EventCountry "GER"]
[SourceTitle "playchess.com"]
[Source "ChessBase"]
[SourceQuality "1"]
[TimeControl "40/4500+30:900+30"]

1. e4 {[%emt 0:00:00]} e5 {[%emt 0:00:00]} 2. Nf3 {[%emt 0:00:00]} Nc6 {[%emt 0:00:00]} 3. Bb5 {[%emt 0:00:00]} Bc5 {[%emt 0:00:27]} 4. O-O {[%emt 0:00:14]} Nf6 {[%emt 0:00:23]} 5. Nc3 {[%emt 0:00:32]} d6 {[%emt 0:00:43]} 6. d3 {[%emt 0:00:53]} h6 {[%emt 0:00:19]} 7. h3 {[%emt 0:01:52]} O-O {[%emt 0:00:30]} 8. Qe2 {[%emt 0:01:46]} Nd4 {[%emt 0:00:49]} 9. Nxd4 {[%emt 0:00:27]} Bxd4 {[%emt 0:00:28]} 10. Nd1 {[%emt 0:00:54]} c6 {[%emt 0:00:37]} 11. Ba4 {[%emt 0:00:37]} a5 {[%emt 0:00:35]} 12. c3 {[%emt 0:01:08]} Ba7 {[%emt 0:00:34]} 13. Be3 {[%emt 0:02:08]} b5 {[%emt 0:01:32]} 14. Bc2 {[%emt 0:00:54]} Re8 15. a4 {[%emt 0:03:44]} d5 {[%emt 0:04:22]} 16. Bxa7 {[%emt 0:00:59]} Rxa7 {[%emt 0:00:30]} 17. Qf3 {[%emt 0:02:17]} dxe4 {[%emt 0:03:38]} 18. dxe4 {[%emt 0:00:21]} Qe7 {[%emt 0:09:22]} 19. Ne3 {[%emt 0:01:02]} Rd8 {[%emt 0:01:32]} 20. Rad1 {[%emt 0:04:08]} Rad7 {[%emt 0:01:17]} 21. axb5 {[%emt 0:01:26]} cxb5 {[%emt 0:00:30]} 22. Rxd7 {[%emt 0:00:21]} Rxd7 {[%emt 0:00:51]} 23. Rd1 {[%emt 0:01:19]} Rxd1+ {[%emt 0:00:29]} 24. Qxd1 {[%emt 0:00:15]} Qd7 {[%emt 0:02:04]} 25. Qxd7 {[%emt 0:00:27]} Nxd7 {[%emt 0:00:18]} 26. Nd5 {[%emt 0:00:41]} Kf8 {[%emt 0:00:33]} 27. f3 {[%emt 0:00:44]} f6 {[%emt 0:00:25]} 28. Kf2 {[%emt 0:00:11]} Kf7 {[%emt 0:00:18]} 29. Ke3 {[%emt 0:00:13]} Bb7 {[%emt 0:02:17]} 30. Nc7 {[%emt 0:00:26]} Bc6 {[%emt 0:01:11]} 31. Bd3 {[%emt 0:00:29]} b4 {[%emt 0:00:31]} 32. cxb4 {[%emt 0:00:53]} axb4 {[%emt 0:00:14]} 33. Na6 {[%emt 0:00:23]} b3 {[%emt 0:00:29]} 34. Bc4+ {[%emt 0:00:14]} Ke7 {[%emt 0:00:59]} 35. Bxb3 {[%emt 0:00:12]} Bb5 {[%emt 0:01:03]} 36. Nb4 {[%emt 0:00:26]} Bf1 {[%emt 0:00:25]} 37. Nd5+ {[%emt 0:00:57]} Kd6 {[%emt 0:00:23]} 38. Kf2 {[%emt 0:00:21]} Bb5 {[%emt 0:02:28]} 39. g3 {[%emt 0:01:09]} Nc5 {[%emt 0:02:07]} 40. Bc2 {[%emt 0:00:35]} Bd3 {[%emt 0:00:30]} 41. Bd1 {[%emt 0:16:24]} Bc4 {[%emt 0:15:39]} 42. Nb4 {[%emt 0:00:43]} Nd3+ {[%emt 0:02:59]} 43. Nxd3 {[%emt 0:00:13]} Bxd3 {[%emt 0:00:36]} 44. Ke3 {[%emt 0:00:14]} Bc4 {[%emt 0:00:26]} 45. Be2 {[%emt 0:00:33]} Kc5 {[%emt 0:00:13]} 46. Bxc4 {[%emt 0:00:35]} Kxc4 {[%emt 0:00:04]} 47. Kd2 {[%emt 0:00:08]} Kb3 {[%emt 0:00:35]} 48. Kc1 {[%emt 0:00:05]} g6 {[%emt 0:02:25]} 49. f4 {[%emt 0:00:33]} Kc4 {[%emt 0:00:59]} 50. Kc2 {[%emt 0:00:26]} Kd4 {[%emt 0:00:28]} 51. Kd2 {[%emt 0:01:40]} Kxe4 {[%emt 0:01:01]} 52. fxe5 {[%emt 0:00:09]} Kxe5 {[%emt 0:01:02]} 53. Ke3 {[%emt 0:00:30]} f5 54. b4 Kd5 {[%emt 0:04:04]} 55. b5 {[%emt 0:00:43]} h5 {[%emt 0:01:12]} 56. Kf4 {[%emt 0:00:19]} Kc5 {[%emt 0:00:15]} 57. b6 {[%emt 0:00:06]} Kxb6 {[%emt 0:00:29]} 58. Kg5 {[%emt 0:00:06]} Kc5 {[%emt 0:02:09]} 59. Kxg6 {[%emt 0:00:06]} h4 {[%emt 0:00:24]} 60. g4 {[%emt 0:02:00]} f4 {[%emt 0:00:28]} 61. g5 {[%emt 0:00:13]} f3 {[%emt 0:00:10]} 62. Kh7 {[%emt 0:00:05]} f2 {[%emt 0:00:31]} 63. g6 {[%emt 0:00:04]} f1=Q 64. g7 Qf5+ {[%emt 0:02:07]} 65. Kh6 {[%emt 0:00:54]} Qf6+ {[%emt 0:01:53]} 66. Kh5 {[%emt 0:00:08]} Qxg7 {[%emt 0:00:28]} 67. Kxh4 {[%emt 0:00:04]} Kd6 {[%emt 0:00:28]} 68. Kh5 {[%emt 0:00:09]} Ke6 {[%emt 0:00:27]} 69. h4 {[%emt 0:00:05]} Qh7+ {[%emt 0:00:19]} 70. Kg5 {[%emt 0:00:07]} Kf7 {[%emt 0:00:35]} 71. h5 {[%emt 0:00:08]} Qg7+ {[%emt 0:00:15]} 72. Kh4 {[%emt 0:00:09]} Kf6 {[%emt 0:00:22]} 73. Kh3 {[%emt 0:00:09]} Qg5 {[%emt 0:00:20]} 74. Kh2 {[%emt 0:00:06]} Kf5 {[%emt 0:00:31]} 75. Kh1 {[%emt 0:00:05]} Kf4 {[%emt 0:00:13]} 76. Kh2 {[%emt 0:00:14]} Kf3 {[%emt 0:00:11]} 77. Kh3 {[%emt 0:00:10]} Qxh5# {[%emt 0:00:14]} 0-1

[Event "GER-ch Youth U10 2020"]
[Site "Willingen"]
[Date "2020.10.29"]
[Round "4.22"]
[White "Nemitz, Alfred"]
[Black "Theviot, Luca"]
[Result "1/2-1/2"]
[ECO "B07"]
[WhiteElo "1287"]
[BlackElo "1423"]
[Annotator "NA RC"]
[PlyCount "147"]
[EventDate "2020.10.27"]
[EventType "swiss"]
[EventRounds "7"]
[EventCountry "GER"]
[SourceTitle "playchess.com"]
[Source "ChessBase"]
[SourceQuality "1"]
[TimeControl "40/4500+30:900+30"]

1. e4 {[%emt 0:00:00]} d6 {[%emt 0:00:00]} 2. d4 {[%emt 0:00:00]} Nf6 {[%emt 0:00:00]} 3. Nc3 {[%emt 0:00:00]} e5 {[%emt 0:00:00]} 4. dxe5 {[%emt 0:00:00]} dxe5 {[%emt 0:00:00]} 5. Qxd8+ Kxd8 6. Bc4 {[%emt 0:00:56]} Be6 {[%emt 0:00:07]} 7. Bxe6 {[%emt 0:00:07]} fxe6 {[%emt 0:00:07]} 8. f3 {[%emt 0:00:05]} Bd6 {[%emt 0:00:25]} 9. Nh3 {[%emt 0:00:50]} Ke7 {[%emt 0:00:07]} 10. Nf2 {[%emt 0:00:21]} Nbd7 {[%emt 0:00:17]} 11. Nd3 {[%emt 0:03:36]} a6 {[%emt 0:01:03]} 12. a4 {[%emt 0:01:34]} h6 {[%emt 0:01:00]} 13. Be3 {[%emt 0:01:38]} Rhf8 {[%emt 0:02:07]} 14. O-O-O {[%emt 0:02:57]} Rab8 {[%emt 0:01:21]} 15. Ba7 {[%emt 0:12:46]} Ra8 {[%emt 0:00:12]} 16. Be3 {[%emt 0:00:07]} b6 {[%emt 0:02:34]} 17. b4 {[%emt 0:05:51]} Nh5 {[%emt 0:09:40]} 18. Ne2 {[%emt 0:08:49]} g5 {[%emt 0:09:22]} 19. h4 {[%emt 0:04:31]} Nf4 {[%emt 0:01:37]} 20. Nexf4 {[%emt 0:00:42]} gxf4 {[%emt 0:00:24]} 21. Bf2 {[%emt 0:01:34]} Rg8 {[%emt 0:01:21]} 22. Rhg1 {[%emt 0:00:19]} Rg7 {[%emt 0:01:04]} 23. g4 {[%emt 0:01:49]} fxg3 {[%emt 0:00:35]} 24. Rxg3 {[%emt 0:00:22]} Rxg3 {[%emt 0:08:32]} 25. Bxg3 {[%emt 0:00:10]} Rf8 {[%emt 0:00:25]} 26. Rf1 {[%emt 0:00:19]} h5 {[%emt 0:01:54]} 27. Kd2 {[%emt 0:00:44]} Rg8 {[%emt 0:01:07]} 28. Rg1 {[%emt 0:01:42]} a5 {[%emt 0:01:34]} 29. bxa5 {[%emt 0:02:08]} bxa5 {[%emt 0:01:09]} 30. Bf2 {[%emt 0:01:07]} Rxg1 {[%emt 0:02:11]} 31. Bxg1 {[%emt 0:00:08]} Nb6 {[%emt 0:00:22]} 32. Bxb6 {[%emt 0:02:14]} cxb6 {[%emt 0:00:47]} 33. Ne1 {[%emt 0:02:35]} Bb4+ {[%emt 0:02:55]} 34. c3 {[%emt 0:03:58]} Bc5 {[%emt 0:00:10]} 35. Ng2 {[%emt 0:01:35]} Kd6 {[%emt 0:01:08]} 36. Kd3 {[%emt 0:01:04]} Kc6 {[%emt 0:00:46]} 37. Kc4 {[%emt 0:02:42]} Bf2 {[%emt 0:02:14]} 38. f4 {[%emt 0:03:29]} Bg3 {[%emt 0:01:13]} 39. fxe5 {[%emt 0:00:38]} Bxe5 {[%emt 0:00:36]} 40. Ne3 {[%emt 0:04:29]} Bg3 {[%emt 0:00:24]} 41. Ng2 {[%emt 0:15:07]} e5 {[%emt 0:15:13]} 42. Kb3 {[%emt 0:02:48]} b5 {[%emt 0:01:37]} 43. Ka3 {[%emt 0:12:45]} Kc5 {[%emt 0:02:45]} 44. axb5 {[%emt 0:00:12]} Kxb5 {[%emt 0:00:10]} 45. Kb3 {[%emt 0:00:08]} a4+ {[%emt 0:00:06]} 46. Ka3 {[%emt 0:00:07]} Kc4 {[%emt 0:00:21]} 47. Ne3+ {[%emt 0:00:06]} Kxc3 {[%emt 0:00:27]} 48. Nf5 {[%emt 0:00:05]} Bf2 {[%emt 0:00:52]} 49. Ng7 Bxh4 50. Nxh5 {[%emt 0:01:27]} Kd4 {[%emt 0:00:44]} 51. Kxa4 {[%emt 0:00:06]} Kxe4 {[%emt 0:00:11]} 52. Ng7 {[%emt 0:00:20]} Kd3 {[%emt 0:00:12]} 53. Nf5 {[%emt 0:00:20]} Bg5 {[%emt 0:00:36]} 54. Kb5 {[%emt 0:00:16]} Ke4 {[%emt 0:00:10]} 55. Nd6+ {[%emt 0:00:09]} Kd5 {[%emt 0:00:55]} 56. Nf5 {[%emt 0:00:16]} e4 {[%emt 0:00:16]} 57. Kb4 {[%emt 0:00:23]} Ke5 {[%emt 0:00:30]} 58. Ng3 {[%emt 0:00:10]} e3 {[%emt 0:00:15]} 59. Kc3 {[%emt 0:00:26]} Kf4 {[%emt 0:00:29]} 60. Ne2+ {[%emt 0:00:31]} Kf3 {[%emt 0:00:06]} 61. Kd3 {[%emt 0:00:45]} Kf2 {[%emt 0:00:49]} 62. Nc1 {[%emt 0:00:46]} Bf6 {[%emt 0:01:14]} 63. Ne2 {[%emt 0:00:29]} Bb2 {[%emt 0:00:11]} 64. Nf4 {[%emt 0:00:12]} Kf3 {[%emt 0:01:18]} 65. Ne2 {[%emt 0:00:14]} Ba3 {[%emt 0:00:32]} 66. Nd4+ {[%emt 0:00:15]} Kf2 {[%emt 0:00:11]} 67. Ne2 {[%emt 0:00:12]} Bb2 {[%emt 0:00:17]} 68. Nf4 {[%emt 0:00:08]} Kf3 {[%emt 0:00:13]} 69. Ne2 {[%emt 0:00:15]} Ba1 {[%emt 0:00:14]} 70. Ng1+ {[%emt 0:00:17]} Kf2 {[%emt 0:00:27]} 71. Ne2 {[%emt 0:00:06]} Bb2 {[%emt 0:00:10]} 72. Nf4 {[%emt 0:00:06]} Bc1 {[%emt 0:00:10]} 73. Ne2 {[%emt 0:00:18]} Bd2 {[%emt 0:00:12]} 74. Nd4 {[%emt 0:00:19]} 1/2-1/2

[Event "GER-ch Youth U10 2020"]
[Site "Willingen"]
[Date "2020.10.29"]
[Round "4.23"]
[White "Conrad, Marius"]
[Black "Ehrath, Hendrik"]
[Result "1/2-1/2"]
[ECO "C54"]
[WhiteElo "1645"]
[BlackElo "1193"]
[Annotator "NA RC"]
[PlyCount "100"]
[EventDate "2020.10.27"]
[EventType "swiss"]
[EventRounds "7"]
[EventCountry "GER"]
[SourceTitle "playchess.com"]
[Source "ChessBase"]
[SourceQuality "1"]
[TimeControl "40/4500+30:900+30"]

1. e4 {[%emt 0:00:00]} e5 {[%emt 0:00:00]} 2. Nf3 {[%emt 0:00:00]} Nc6 {[%emt 0:00:00]} 3. Bc4 {[%emt 0:00:00]} Bc5 {[%emt 0:00:00]} 4. c3 {[%emt 0:00:00]} Nf6 {[%emt 0:00:38]} 5. d3 {[%emt 0:00:10]} d5 {[%emt 0:00:31]} 6. exd5 {[%emt 0:00:46]} Nxd5 {[%emt 0:00:16]} 7. O-O {[%emt 0:00:36]} Bg4 {[%emt 0:00:08]} 8. Nbd2 {[%emt 0:01:12]} O-O {[%emt 0:00:18]} 9. h3 {[%emt 0:01:15]} Bh5 {[%emt 0:00:11]} 10. Ne4 {[%emt 0:01:14]} Be7 {[%emt 0:00:59]} 11. Re1 {[%emt 0:01:44]} Bf6 {[%emt 0:00:27]} 12. Nxf6+ {[%emt 0:00:38]} Nxf6 {[%emt 0:00:27]} 13. Bg5 {[%emt 0:00:32]} Re8 {[%emt 0:00:44]} 14. b4 {[%emt 0:02:25]} a6 {[%emt 0:00:30]} 15. a4 {[%emt 0:00:26]} b6 {[%emt 0:01:49]} 16. Re3 {[%emt 0:01:10]} Rf8 {[%emt 0:01:58]} 17. Qb3 {[%emt 0:00:39]} Qe7 {[%emt 0:00:41]} 18. Bd5 {[%emt 0:00:28]} Qd6 {[%emt 0:00:38]} 19. Bc4 {[%emt 0:04:36]} Rad8 {[%emt 0:00:34]} 20. Rae1 {[%emt 0:01:29]} Rde8 {[%emt 0:02:20]} 21. Bxa6 {[%emt 0:02:26]} Nd5 {[%emt 0:02:29]} 22. Re4 {[%emt 0:03:33]} Nf6 {[%emt 0:01:14]} 23. Bxf6 {[%emt 0:00:59]} Qxf6 {[%emt 0:02:13]} 24. R4e3 {[%emt 0:01:29]} Nb8 {[%emt 0:03:08]} 25. Bb5 {[%emt 0:01:00]} c6 {[%emt 0:00:11]} 26. Bc4 {[%emt 0:00:39]} Re7 {[%emt 0:00:39]} 27. d4 {[%emt 0:04:08]} e4 {[%emt 0:01:45]} 28. Nd2 {[%emt 0:01:48]} Bg6 {[%emt 0:01:00]} 29. Qc2 {[%emt 0:04:09]} Rfe8 {[%emt 0:01:01]} 30. Nxe4 {[%emt 0:02:15]} Bxe4 {[%emt 0:00:30]} 31. Rxe4 {[%emt 0:00:14]} g6 {[%emt 0:00:40]} 32. Rxe7 {[%emt 0:01:08]} Rxe7 {[%emt 0:00:20]} 33. Rxe7 {[%emt 0:00:08]} Qxe7 {[%emt 0:02:09]} 34. Qd2 {[%emt 0:00:13]} Nd7 {[%emt 0:04:33]} 35. Qf4 {[%emt 0:01:01]} Nf6 {[%emt 0:01:07]} 36. Qb8+ {[%emt 0:01:02]} Kg7 {[%emt 0:01:17]} 37. Qxb6 {[%emt 0:00:52]} Qe1+ 38. Kh2 Qxc3 {[%emt 0:01:40]} 39. Qc5 {[%emt 0:01:44]} Qc1 {[%emt 0:01:53]} 40. g3 {[%emt 0:06:37]} Qc2 {[%emt 0:02:19]} 41. d5 {[%emt 0:19:04]} cxd5 {[%emt 0:16:42]} 42. Bxd5 {[%emt 0:00:24]} Qxc5 {[%emt 0:00:38]} 43. bxc5 {[%emt 0:00:12]} Nxd5 {[%emt 0:00:08]} 44. a5 {[%emt 0:00:26]} Nb4 {[%emt 0:00:14]} 45. Kg2 {[%emt 0:00:20]} Kf6 {[%emt 0:00:13]} 46. Kf3 {[%emt 0:00:11]} Ke5 {[%emt 0:00:33]} 47. Kg4 {[%emt 0:00:36]} h6 {[%emt 0:00:23]} 48. f4+ {[%emt 0:00:15]} Ke6 {[%emt 0:00:16]} 49. h4 {[%emt 0:00:19]} f5+ {[%emt 0:00:17]} 50. Kf3 {[%emt 0:00:32]} h5 1/2-1/2

[Event "GER-ch Youth U10 2020"]
[Site "Willingen"]
[Date "2020.10.29"]
[Round "4.24"]
[White "Sewerinow, Alexander"]
[Black "Goldkuhle, Collin"]
[Result "1-0"]
[ECO "B35"]
[WhiteElo "1202"]
[BlackElo "1418"]
[Annotator "NA RC"]
[PlyCount "79"]
[EventDate "2020.10.27"]
[EventType "swiss"]
[EventRounds "7"]
[EventCountry "GER"]
[SourceTitle "playchess.com"]
[Source "ChessBase"]
[SourceQuality "1"]
[TimeControl "40/4500+30:900+30"]

1. e4 {[%emt 0:00:00]} c5 {[%emt 0:00:00]} 2. Nf3 {[%emt 0:00:00]} g6 {[%emt 0:00:01]} 3. d4 {[%emt 0:00:00]} cxd4 {[%emt 0:00:07]} 4. Nxd4 {[%emt 0:00:00]} Bg7 {[%emt 0:00:08]} 5. Nc3 {[%emt 0:00:03]} Nc6 {[%emt 0:00:06]} 6. Be3 {[%emt 0:00:08]} Nf6 {[%emt 0:00:26]} 7. Bc4 {[%emt 0:00:17]} O-O {[%emt 0:00:22]} 8. f3 {[%emt 0:00:05]} a6 {[%emt 0:00:38]} 9. Qd2 {[%emt 0:00:23]} Qc7 {[%emt 0:00:12]} 10. O-O-O {[%emt 0:00:14]} Nxd4 {[%emt 0:00:14]} 11. Bxf7+ {[%emt 0:01:05]} Rxf7 {[%emt 0:00:57]} 12. Bxd4 {[%emt 0:00:15]} b5 {[%emt 0:01:24]} 13. a3 {[%emt 0:00:28]} Qd6 {[%emt 0:02:26]} 14. e5 {[%emt 0:00:33]} Qb8 {[%emt 0:02:12]} 15. exf6 {[%emt 0:00:14]} exf6 {[%emt 0:00:11]} 16. Ne4 Bb7 17. h4 {[%emt 0:03:47]} Bxe4 {[%emt 0:00:45]} 18. fxe4 {[%emt 0:00:11]} h5 {[%emt 0:00:21]} 19. Rhg1 {[%emt 0:01:48]} Kh7 {[%emt 0:00:27]} 20. g4 {[%emt 0:00:44]} Bh6 {[%emt 0:01:14]} 21. Be3 {[%emt 0:00:42]} Bxe3 {[%emt 0:01:03]} 22. Qxe3 Qe5 23. Kb1 {[%emt 0:03:33]} Rc8 {[%emt 0:00:58]} 24. Rde1 {[%emt 0:02:04]} Qh2 {[%emt 0:02:02]} 25. gxh5 {[%emt 0:06:09]} Qxc2+ {[%emt 0:00:27]} 26. Ka1 {[%emt 0:00:15]} gxh5 {[%emt 0:01:14]} 27. Qg3 {[%emt 0:00:34]} Kh8 {[%emt 0:05:48]} 28. Qg6 {[%emt 0:01:29]} Qd2 {[%emt 0:07:52]} 29. Qxf7 {[%emt 0:03:20]} Qxe1+ {[%emt 0:01:19]} 30. Rxe1 {[%emt 0:02:25]} Rg8 {[%emt 0:00:18]} 31. Qxh5+ {[%emt 0:00:12]} Kg7 {[%emt 0:00:07]} 32. Rg1+ {[%emt 0:00:04]} Kf8 {[%emt 0:00:08]} 33. Rxg8+ {[%emt 0:00:07]} Kxg8 {[%emt 0:00:07]} 34. Qg6+ {[%emt 0:00:19]} Kh8 {[%emt 0:00:07]} 35. Qxf6+ {[%emt 0:00:24]} Kg8 {[%emt 0:00:07]} 36. Qe7 {[%emt 0:00:02]} b4 {[%emt 0:00:10]} 37. h5 {[%emt 0:01:56]} bxa3 {[%emt 0:00:09]} 38. h6 {[%emt 0:00:10]} axb2+ {[%emt 0:00:04]} 39. Kxb2 {[%emt 0:00:18]} a5 {[%emt 0:00:07]} 40. Qg7# 1-0

[Event "GER-ch Youth U10 2020"]
[Site "Willingen"]
[Date "2020.10.29"]
[Round "4.25"]
[White "Mündörfer, Sebastian"]
[Black "Meng, Yuxuan"]
[Result "0-1"]
[ECO "A58"]
[WhiteElo "1175"]
[BlackElo "1515"]
[Annotator "NA RC"]
[PlyCount "72"]
[EventDate "2020.10.27"]
[EventType "swiss"]
[EventRounds "7"]
[EventCountry "GER"]
[SourceTitle "playchess.com"]
[Source "ChessBase"]
[SourceQuality "1"]
[TimeControl "40/4500+30:900+30"]

1. d4 {[%emt 0:00:00]} Nf6 {[%emt 0:00:00]} 2. c4 {[%emt 0:00:00]} c5 {[%emt 0:00:00]} 3. d5 {[%emt 0:00:00]} b5 {[%emt 0:00:00]} 4. cxb5 {[%emt 0:00:06]} a6 5. bxa6 {[%emt 0:00:07]} g6 {[%emt 0:00:04]} 6. g3 {[%emt 0:00:09]} d6 {[%emt 0:00:24]} 7. Bg2 {[%emt 0:00:33]} Bg7 {[%emt 0:00:14]} 8. Nf3 {[%emt 0:00:57]} O-O {[%emt 0:00:40]} 9. O-O {[%emt 0:00:09]} Nxa6 {[%emt 0:01:53]} 10. Nc3 {[%emt 0:01:09]} Bd7 {[%emt 0:05:23]} 11. Bd2 {[%emt 0:02:06]} Qb6 {[%emt 0:02:05]} 12. Qc1 {[%emt 0:03:01]} Nc7 {[%emt 0:07:39]} 13. e4 {[%emt 0:04:05]} Nb5 {[%emt 0:06:35]} 14. Nxb5 {[%emt 0:03:30]} Bxb5 {[%emt 0:02:13]} 15. Re1 {[%emt 0:01:04]} Rfb8 {[%emt 0:11:30]} 16. Bh6 {[%emt 0:01:36]} Bh8 {[%emt 0:11:00]} 17. b3 {[%emt 0:06:45]} Ng4 {[%emt 0:12:51]} 18. Bg5 {[%emt 0:04:19]} Bxa1 {[%emt 0:00:49]} 19. Qxa1 {[%emt 0:00:07]} f6 {[%emt 0:00:09]} 20. Bd2 {[%emt 0:00:33]} c4 {[%emt 0:00:56]} 21. bxc4 {[%emt 0:04:10]} Qxf2+ {[%emt 0:01:10]} 22. Kh1 {[%emt 0:00:07]} Bxc4 {[%emt 0:00:33]} 23. h3 {[%emt 0:01:03]} Ne5 {[%emt 0:04:13]} 24. Nxe5 dxe5 {[%emt 0:00:29]} 25. a3 {[%emt 0:01:01]} Qxd2 {[%emt 0:00:25]} 26. Rd1 {[%emt 0:00:39]} Qa2 {[%emt 0:00:53]} 27. Qxa2 {[%emt 0:00:29]} Bxa2 {[%emt 0:00:06]} 28. Ra1 {[%emt 0:00:30]} Rb1+ {[%emt 0:00:17]} 29. Rxb1 {[%emt 0:00:09]} Bxb1 {[%emt 0:00:04]} 30. g4 {[%emt 0:00:11]} Rxa3 {[%emt 0:00:05]} 31. h4 {[%emt 0:00:16]} Ra4 {[%emt 0:00:07]} 32. h5 {[%emt 0:00:14]} Bxe4 {[%emt 0:00:08]} 33. hxg6 {[%emt 0:00:08]} Bxg2+ {[%emt 0:00:07]} 34. Kxg2 {[%emt 0:00:07]} Rxg4+ {[%emt 0:00:06]} 35. Kh3 {[%emt 0:00:22]} Rxg6 {[%emt 0:00:07]} 36. Kh2 {[%emt 0:00:13]} e4 0-1

[Event "GER-ch Youth U10 2020"]
[Site "Willingen"]
[Date "2020.10.29"]
[Round "4.26"]
[White "Hellenbroich, Hanno"]
[Black "Deiringer, Julius"]
[Result "1-0"]
[ECO "C54"]
[WhiteElo "1291"]
[BlackElo "1332"]
[Annotator "NA RC"]
[PlyCount "63"]
[EventDate "2020.10.27"]
[EventType "swiss"]
[EventRounds "7"]
[EventCountry "GER"]
[SourceTitle "playchess.com"]
[Source "ChessBase"]
[SourceQuality "1"]
[TimeControl "40/4500+30:900+30"]

1. e4 {[%emt 0:00:00]} e5 {[%emt 0:00:00]} 2. Nf3 {[%emt 0:00:00]} Nc6 {[%emt 0:00:00]} 3. Bc4 {[%emt 0:00:02]} Bc5 {[%emt 0:00:00]} 4. c3 {[%emt 0:00:14]} Nf6 {[%emt 0:00:00]} 5. d3 {[%emt 0:00:17]} d6 {[%emt 0:00:25]} 6. O-O {[%emt 0:00:38]} a6 {[%emt 0:00:15]} 7. Bb3 {[%emt 0:00:38]} Ba7 {[%emt 0:00:19]} 8. Nbd2 {[%emt 0:00:19]} O-O {[%emt 0:00:29]} 9. Re1 {[%emt 0:00:07]} Re8 {[%emt 0:00:12]} 10. Nf1 {[%emt 0:00:51]} h6 {[%emt 0:00:21]} 11. Ng3 {[%emt 0:00:20]} Be6 {[%emt 0:00:16]} 12. Bc2 {[%emt 0:00:09]} d5 {[%emt 0:00:25]} 13. exd5 {[%emt 0:09:15]} Bxd5 {[%emt 0:00:10]} 14. Nf5 {[%emt 0:01:53]} Qd7 {[%emt 0:03:13]} 15. d4 e4 {[%emt 0:00:46]} 16. N3h4 {[%emt 0:11:53]} Ne7 {[%emt 0:02:12]} 17. Nxe7+ {[%emt 0:02:11]} Qxe7 {[%emt 0:00:33]} 18. Nf5 {[%emt 0:00:54]} Qe6 {[%emt 0:00:54]} 19. Ng3 {[%emt 0:00:31]} Rad8 {[%emt 0:01:36]} 20. b3 {[%emt 0:02:06]} b5 {[%emt 0:02:03]} 21. Kh1 {[%emt 0:07:48]} Qc6 {[%emt 0:01:21]} 22. Bd2 {[%emt 0:02:44]} e3 {[%emt 0:04:04]} 23. Rxe3 {[%emt 0:03:07]} Bxg2+ {[%emt 0:01:19]} 24. Kg1 {[%emt 0:01:25]} Rxe3 {[%emt 0:03:13]} 25. Bxe3 {[%emt 0:01:12]} Bh3 {[%emt 0:00:46]} 26. f3 {[%emt 0:02:36]} Qxc3 {[%emt 0:01:18]} 27. Bf2 {[%emt 0:10:22]} Bxd4 {[%emt 0:00:39]} 28. Bxd4 {[%emt 0:00:04]} Rxd4 {[%emt 0:00:18]} 29. Qc1 {[%emt 0:00:07]} Rd2 {[%emt 0:00:42]} 30. Bh7+ {[%emt 0:00:58]} Nxh7 {[%emt 0:00:19]} 31. Qxc3 {[%emt 0:00:04]} Rg2+ {[%emt 0:00:21]} 32. Kh1 {[%emt 0:00:09]} 1-0

[Event "GER-ch Youth U10 2020"]
[Site "Willingen"]
[Date "2020.10.29"]
[Round "4.27"]
[White "Kamleiter, Noah"]
[Black "Yin, Vito"]
[Result "1/2-1/2"]
[ECO "C77"]
[WhiteElo "1573"]
[BlackElo "1320"]
[Annotator "NA RC"]
[PlyCount "93"]
[EventDate "2020.10.27"]
[EventType "swiss"]
[EventRounds "7"]
[EventCountry "GER"]
[SourceTitle "playchess.com"]
[Source "ChessBase"]
[SourceQuality "1"]
[TimeControl "40/4500+30:900+30"]

1. e4 {[%emt 0:00:00]} e5 {[%emt 0:00:00]} 2. Nf3 {[%emt 0:00:00]} Nc6 {[%emt 0:00:00]} 3. Bb5 {[%emt 0:00:00]} a6 {[%emt 0:00:00]} 4. Ba4 {[%emt 0:00:00]} Nf6 {[%emt 0:00:00]} 5. d4 {[%emt 0:00:08]} Nxe4 {[%emt 0:01:10]} 6. O-O {[%emt 0:00:08]} Be7 {[%emt 0:00:13]} 7. Nxe5 {[%emt 0:00:41]} Nxe5 {[%emt 0:00:57]} 8. dxe5 {[%emt 0:00:08]} Nc5 {[%emt 0:00:07]} 9. Bb3 {[%emt 0:00:16]} Nxb3 {[%emt 0:00:57]} 10. axb3 {[%emt 0:00:31]} d5 {[%emt 0:01:38]} 11. Nc3 {[%emt 0:02:28]} c6 {[%emt 0:00:50]} 12. Re1 {[%emt 0:04:54]} Be6 {[%emt 0:01:52]} 13. Re3 {[%emt 0:02:28]} d4 {[%emt 0:00:42]} 14. Rd3 {[%emt 0:00:10]} c5 {[%emt 0:03:37]} 15. Ne2 {[%emt 0:00:36]} Qc7 {[%emt 0:07:55]} 16. Bf4 {[%emt 0:01:04]} Rd8 {[%emt 0:02:47]} 17. Rg3 {[%emt 0:01:53]} Rg8 {[%emt 0:06:26]} 18. Qd3 {[%emt 0:04:34]} g6 {[%emt 0:02:24]} 19. Rd1 {[%emt 0:02:37]} h5 {[%emt 0:02:19]} 20. h3 {[%emt 0:02:24]} Rg7 {[%emt 0:01:41]} 21. Bh6 {[%emt 0:01:47]} Rg8 {[%emt 0:01:26]} 22. f4 {[%emt 0:00:59]} h4 {[%emt 0:02:26]} 23. Rf3 {[%emt 0:01:27]} Bf5 {[%emt 0:02:17]} 24. Qd2 {[%emt 0:00:49]} Be4 {[%emt 0:01:43]} 25. Rf2 {[%emt 0:01:29]} Qc6 {[%emt 0:00:37]} 26. Nc1 {[%emt 0:01:19]} b5 {[%emt 0:01:49]} 27. Qe2 {[%emt 0:02:24]} c4 {[%emt 0:01:47]} 28. bxc4 {[%emt 0:00:31]} bxc4 {[%emt 0:00:09]} 29. Rff1 {[%emt 0:01:55]} Bc5 {[%emt 0:01:39]} 30. Kh2 {[%emt 0:00:34]} Bf5 {[%emt 0:01:55]} 31. Bg5 {[%emt 0:01:37]} Rd7 {[%emt 0:01:59]} 32. Bxh4 {[%emt 0:02:24]} Qa4 {[%emt 0:03:46]} 33. b3 {[%emt 0:05:02]} cxb3 {[%emt 0:00:51]} 34. cxb3 {[%emt 0:00:25]} Qc6 {[%emt 0:02:46]} 35. Nd3 {[%emt 0:02:27]} Bf8 {[%emt 0:07:50]} 36. Rc1 {[%emt 0:02:42]} Qa8 {[%emt 0:01:07]} 37. Qc2 {[%emt 0:03:46]} Be7 {[%emt 0:02:55]} 38. Bf6 {[%emt 0:02:14]} Be6 {[%emt 0:04:03]} 39. Bxe7 {[%emt 0:05:40]} Rxe7 {[%emt 0:00:59]} 40. Qa2 {[%emt 0:00:31]} g5 {[%emt 0:04:21]} 41. Qa4+ {[%emt 0:17:07]} Bd7 {[%emt 0:16:35]} 42. Qxd4 {[%emt 0:00:32]} Bb5 {[%emt 0:01:16]} 43. Rc2 {[%emt 0:02:13]} gxf4 {[%emt 0:00:57]} 44. Rxf4 {[%emt 0:00:40]} Rc7 {[%emt 0:00:56]} 45. Rff2 {[%emt 0:01:42]} Rd7 46. Qc5 Rxd3 47. Qc8+ 1/2-1/2